bitfinex/quotes_BTCUSD_20241101
["timestamp","ask_amount","ask_price","bid_price","bid_amount"]
[1730476253029,0.1571506,69263.0,69262.0,0.000821]
[1730476253243,0.03320861,69263.0,69262.0,0.1452]
[1730476253657,0.0127736,69263.0,69262.0,0.1452]
[1730476254311,0.03322901,69263.0,69262.0,0.1452]
[1730476254519,0.0077736,69263.0,69262.0,0.28365525]
[1730476254718,0.0077736,69263.0,69262.0,0.28965525]
[1730476255364,0.0077736,69263.0,69262.0,0.28365525]
[1730476255546,0.0077736,69263.0,69262.0,0.28865525]
[1730476255922,0.1521506,69263.0,69262.0,0.005821]
[1730476256257,0.02824287,69263.0,69262.0,0.1502]
[1730476256495,0.17261987,69263.0,69262.0,0.005821]
[1730476257077,0.02824287,69263.0,69262.0,0.28865525]
[1730476257282,0.02046927,69274.0,69273.0,0.144356]
[1730476257693,0.02046927,69274.0,69262.0,0.14427625]
[1730476257694,0.23708291,69287.0,69276.0,0.288697]
[1730476257893,0.23708291,69287.0,69279.0,0.144343]
[1730476257894,0.144329,69286.0,69279.0,0.144343]
[1730476258130,0.21579163,69287.0,69262.0,0.13927625]
[1730476258131,0.02046708,69280.0,69263.0,0.21579163]
[1730476258327,0.00286335,69286.0,69279.0,0.21579163]
[1730476258487,0.21579163,69310.0,69271.0,0.51940447]
[1730476258488,0.02046927,69285.0,69283.0,0.288669]
[1730476258833,0.21579163,69293.0,69292.0,0.144316]
[1730476258948,0.001634,69347.0,69292.0,0.144316]
[1730476258949,0.50435363,69310.0,69301.0,0.144298]
[1730476259177,0.23626586,69302.0,69301.0,0.144298]
[1730476259404,0.0781,69330.0,69301.0,0.144298]
[1730476259405,0.21579163,69314.0,69313.0,0.144273]
[1730476259621,0.23624818,69314.0,69313.0,0.144273]
[1730476259828,0.23624818,69314.0,69301.0,0.38094922]
[1730476259829,0.23624818,69314.0,69305.0,0.288576]
[1730476260041,0.02045655,69313.0,69306.0,0.13845525]
[1730476260289,0.02129128,69320.0,69310.0,0.144278]
[1730476260290,0.02045655,69312.0,69310.0,0.144278]
[1730476260530,0.02129128,69319.0,69318.0,0.144262]
[1730476260763,0.02129128,69319.0,69313.0,0.144272]
[1730476260764,0.02046208,69319.0,69313.0,0.144272]
[1730476260967,0.02046208,69319.0,69302.0,0.0832]
[1730476260968,0.02046208,69318.0,69308.0,0.288566]
[1730476261193,0.02046208,69317.0,69302.0,0.21579163]
[1730476261398,0.01,69314.0,69313.0,0.001]
[1730476261524,0.17473208,69314.0,69313.0,0.001]
[1730476261731,0.02332543,69314.0,69303.0,0.21579163]
[1730476261940,0.02128592,69311.0,69308.0,0.144282]
[1730476262160,0.02046208,69310.0,69308.0,0.006]
[1730476262358,0.02046208,69309.0,69308.0,0.006]
[1730476262567,0.02046208,69309.0,69306.0,0.144287]
[1730476262568,0.03122911,69309.0,69306.0,0.144287]
[1730476262837,0.03122911,69308.0,69283.0,0.288668]
[1730476262968,0.03122911,69308.0,69255.0,0.06359801]
[1730476262969,0.22799246,69307.0,69295.0,0.21579163]
[1730476263172,0.144308,69296.0,69295.0,0.21579163]
[1730476263375,0.144325,69288.0,69287.0,0.21579163]
[1730476263580,0.144325,69288.0,69276.0,0.21579163]
[1730476263581,0.02332543,69288.0,69276.0,0.21579163]
[1730476263776,0.02128592,69292.0,69287.0,0.21579163]
[1730476263959,0.02128592,69292.0,69262.0,0.010821]
[1730476263960,0.21579163,69290.0,69267.0,0.288737]
[1730476264159,0.21579163,69290.0,69273.0,0.21579163]
[1730476264160,0.144354,69274.0,69273.0,0.21579163]
[1730476264364,0.14436,69272.0,69266.0,0.14437]
[1730476264644,0.30913679,69271.0,69262.0,0.010821]
[1730476264856,0.02041479,69270.0,69269.0,0.144363]
[1730476265300,0.02041479,69270.0,69268.0,0.144365]
[1730476265496,0.21579163,69276.0,69268.0,0.144364]
[1730476265497,0.02041479,69269.0,69268.0,0.144364]
[1730476265708,0.00286335,69275.0,69266.0,0.001]
[1730476265930,0.0203986,69274.0,69267.0,0.288737]
[1730476266129,0.02128592,69284.0,69262.0,0.010821]
[1730476266130,0.0203986,69273.0,69272.0,0.144358]
[1730476266406,0.21579163,69280.0,69279.0,0.144343]
[1730476266612,0.22854781,69280.0,69279.0,0.144343]
[1730476266840,0.288687,69279.0,69264.0,0.38094922]
[1730476267054,0.03316629,69278.0,69265.0,0.35424688]
[1730476267277,0.288635,69292.0,69265.0,0.35424688]
[1730476267278,0.03316629,69277.0,69276.0,0.14435]
[1730476267488,0.01275618,69277.0,69276.0,0.28280525]
[1730476267948,0.21579163,69296.0,69276.0,0.13845525]
[1730476268189,0.21579163,69296.0,69272.0,0.38094922]
[1730476268190,0.21579163,69284.0,69283.0,0.144335]
[1730476268422,0.21579163,69296.0,69279.0,0.288687]
[1730476268664,0.21579163,69296.0,69258.0,0.288772]
[1730476268665,0.14436,69272.0,69265.0,0.006]
[1730476268894,0.1946,69288.0,69255.0,0.21579163]
[1730476268895,0.02327477,69278.0,69271.0,0.21579163]
[1730476269110,0.30145432,69277.0,69276.0,0.006]
[1730476269320,0.15710432,69277.0,69276.0,0.006]
[1730476269535,0.01275632,69277.0,69276.0,0.006]
[1730476269813,0.01275632,69277.0,69276.0,0.15035]
[1730476270054,0.02041106,69293.0,69276.0,0.14445525]
[1730476270280,0.21579163,69311.0,69287.0,0.288654]
[1730476270281,0.21579163,69289.0,69287.0,0.288654]
[1730476270488,0.21579163,69289.0,69288.0,0.28278025]
[1730476270709,0.21579163,69296.0,69295.0,0.14431]
[1730476270917,0.21579163,69296.0,69279.0,0.288687]
[1730476270918,0.144325,69288.0,69272.0,0.144358]
[1730476271126,0.144349,69277.0,69274.0,0.21579163]
[1730476271352,0.00286335,69276.0,69267.0,0.21579163]
[1730476271586,0.144364,69269.0,69268.0,0.21579163]
[1730476271811,0.144365,69269.0,69262.0,0.010821]
[1730476272043,0.288678,69282.0,69262.0,0.010821]
[1730476272044,0.14722435,69271.0,69264.0,0.144373]
[1730476272269,0.21579163,69282.0,69262.0,0.010821]
[1730476272487,0.144362,69270.0,69267.0,0.004]
[1730476272941,0.001,69276.0,69267.0,0.004]
[1730476273185,0.36014363,69275.0,69273.0,0.1]
[1730476273397,0.36014363,69275.0,69273.0,0.0995]
[1730476273398,0.288704,69275.0,69273.0,0.0995]
[1730476273611,0.14721735,69274.0,69273.0,0.0995]
[1730476274049,0.288699,69277.0,69273.0,0.0995]
[1730476274264,0.289675,69282.0,69274.0,0.21579163]
[1730476274486,0.21679163,69282.0,69273.0,0.0995]
[1730476274661,0.144354,69274.0,69273.0,0.0995]
[1730476274922,0.2856726,69274.0,69273.0,0.0995]
[1730476275104,0.2856726,69274.0,69273.0,0.1015]
[1730476275105,0.29557697,69274.0,69273.0,0.1015]
[1730476275319,0.33485324,69274.0,69273.0,0.1015]
[1730476275567,0.144377,69263.0,69262.0,0.010821]
[1730476275794,0.29559705,69263.0,69262.0,0.010821]
[1730476276024,0.4939669,69263.0,69262.0,0.010821]
[1730476276231,0.51438244,69263.0,69262.0,0.010821]
[1730476276433,0.51438244,69263.0,69251.0,0.21579163]
[1730476276434,0.144383,69260.0,69251.0,0.21579163]
[1730476276637,0.40924161,69260.0,69251.0,0.21579163]
[1730476276836,0.42676815,69260.0,69251.0,0.21579163]
[1730476277007,0.56483153,69260.0,69251.0,0.21579163]
[1730476277226,0.54444164,69260.0,69250.0,0.05]
[1730476277429,0.54444164,69260.0,69242.0,0.0001]
[1730476277430,0.1,69250.0,69242.0,0.0001]
[1730476277589,0.1,69250.0,69228.0,0.21579163]
[1730476277590,0.144437,69234.0,69228.0,0.21579163]
[1730476277806,0.43986111,69234.0,69228.0,0.21579163]
[1730476278020,0.40643226,69234.0,69229.0,0.21579163]
[1730476278227,0.40643226,69234.0,69224.0,0.00085459]
[1730476278429,0.577842,69223.0,69200.0,0.06947607]
[1730476278639,0.44149526,69234.0,69209.0,0.17379326]
[1730476278640,0.244487,69210.0,69209.0,0.17379326]
[1730476278841,0.244487,69210.0,69202.0,0.21579163]
[1730476278842,0.244502,69203.0,69202.0,0.21579163]
[1730476279048,0.28295725,69203.0,69202.0,0.21079163]
[1730476279263,0.288963,69213.0,69194.0,0.0187651]
[1730476279264,0.21579163,69223.0,69194.0,0.0187651]
[1730476279490,0.21579163,69208.0,69194.0,0.0187651]
[1730476279696,0.1413186,69207.0,69195.0,0.21579163]
[1730476279994,0.12551498,69222.0,69198.0,0.21579163]
[1730476279995,0.1445,69205.0,69198.0,0.21579163]
[1730476280165,0.1445,69205.0,69194.0,0.0187651]
[1730476280166,0.21579163,69202.0,69199.0,0.00289006]
[1730476280399,0.21579163,69211.0,69194.0,0.0187651]
[1730476280400,0.00286335,69201.0,69194.0,0.0187651]
[1730476280612,0.289017,69200.0,69194.0,0.0187651]
[1730476280830,0.144519,69195.0,69194.0,0.0187651]
[1730476281037,0.2858376,69195.0,69194.0,0.0187651]
[1730476281243,0.28297425,69195.0,69194.0,0.0187651]
[1730476281364,0.144525,69192.0,69191.0,0.41410271]
[1730476281597,0.144525,69192.0,69150.0,0.00132]
[1730476281598,0.1,69189.0,69150.0,0.00132]
[1730476281814,0.2442381,69179.0,69178.0,0.34400567]
[1730476282059,0.43754327,69179.0,69178.0,0.31509467]
[1730476282296,0.38269335,69179.0,69178.0,0.31509467]
[1730476283143,0.4220999,69179.0,69178.0,0.31509467]
[1730476283365,0.4220999,69179.0,69150.0,0.00132]
[1730476283366,0.144583,69164.0,69150.0,0.00132]
[1730476283605,0.42463634,69164.0,69150.0,0.00132]
[1730476284236,0.28303825,69164.0,69150.0,0.00132]
[1730476284483,0.21579163,69179.0,69169.0,0.144573]
[1730476284720,0.21579163,69170.0,69159.0,0.1819]
[1730476284979,0.00286335,69171.0,69170.0,0.00778069]
[1730476285204,0.14742535,69175.0,69163.0,0.37153847]
[1730476285412,0.14742535,69175.0,69163.0,0.22695347]
[1730476285413,0.21579163,69168.0,69163.0,0.22695347]
[1730476285617,0.144583,69164.0,69163.0,0.22695347]
[1730476285824,0.3859016,69164.0,69163.0,0.22695347]
[1730476286046,0.38303825,69164.0,69163.0,0.22695347]
[1730476286282,0.28303825,69164.0,69163.0,0.22695347]
[1730476286500,0.36917308,69164.0,69163.0,0.22695347]
[1730476286706,0.36917308,69164.0,69163.0,0.22895347]
[1730476286957,0.46917308,69164.0,69163.0,0.22895347]
[1730476287185,0.4816971,69164.0,69163.0,0.22695347]
[1730476287416,0.48168013,69164.0,69163.0,0.22695347]
[1730476287650,0.49068013,69164.0,69163.0,0.22695347]
[1730476288114,0.49068013,69164.0,69163.0,0.22777547]
[1730476288115,0.48168013,69164.0,69163.0,0.22777547]
[1730476288537,0.2955453,69164.0,69163.0,0.22777547]
[1730476288753,0.29703825,69164.0,69163.0,0.22777547]
[1730476289384,0.39703825,69164.0,69163.0,0.22777547]
[1730476289601,0.39552255,69164.0,69163.0,0.22777547]
[1730476289919,0.40952255,69164.0,69163.0,0.22777547]
[1730476290157,0.49582151,69164.0,69163.0,0.22777547]
[1730476290369,0.38303825,69164.0,69163.0,0.22777547]
[1730476290588,0.3955127,69164.0,69163.0,0.22777547]
[1730476291000,0.4095127,69164.0,69163.0,0.22777547]
[1730476291418,0.4095127,69164.0,69156.0,0.0218948]
[1730476291419,0.144598,69157.0,69156.0,0.0218948]
[1730476291626,0.144598,69157.0,69146.0,0.00487875]
[1730476291627,0.1,69150.0,69148.0,5.2e-07]
[1730476291826,0.77649392,69149.0,69148.0,5.2e-07]
[1730476292037,0.83231843,69149.0,69148.0,5.2e-07]
[1730476292233,0.81238121,69149.0,69148.0,5.2e-07]
[1730476292465,0.77647466,69149.0,69148.0,5.2e-07]
[1730476292839,0.77647466,69149.0,69143.0,0.00090747]
[1730476292840,0.144625,69144.0,69143.0,0.00090747]
[1730476292957,0.5196296,69144.0,69143.0,0.00090747]
[1730476293170,0.144636,69139.0,69125.0,0.000817]
[1730476293381,1.25448976,69139.0,69138.0,9.7e-07]
[1730476293584,1.25448976,69139.0,69125.0,0.000817]
[1730476293585,0.144648,69133.0,69132.0,0.04434737]
[1730476293815,0.144648,69133.0,69132.0,0.01541737]
[1730476293816,0.38310325,69133.0,69132.0,0.01541737]
[1730476294014,0.28310325,69133.0,69132.0,0.01541737]
[1730476294653,2.01699054,69133.0,69132.0,0.01541737]
[1730476294906,0.41899054,69133.0,69132.0,0.01541737]
[1730476295173,0.41899054,69133.0,69125.0,0.000817]
[1730476295364,0.289287,69136.0,69125.0,0.000817]
[1730476295365,0.38311825,69126.0,69125.0,0.000817]
[1730476295690,0.244667,69124.0,69123.0,1e-07]
[1730476295832,0.38312225,69124.0,69123.0,1e-07]
[1730476296040,0.28312225,69124.0,69123.0,1e-07]
[1730476296466,0.49891388,69124.0,69123.0,1e-07]
[1730476296681,0.28312225,69124.0,69123.0,1e-07]
[1730476296884,0.36929918,69124.0,69123.0,1e-07]
[1730476297097,0.28312225,69124.0,69123.0,1e-07]
[1730476297312,0.15245525,69124.0,69123.0,1e-07]
[1730476297536,0.014,69124.0,69123.0,0.2248691]
[1730476297762,0.21579163,69132.0,69123.0,0.0802001]
[1730476297977,0.144664,69126.0,69123.0,0.08812371]
[1730476298195,0.21579163,69139.0,69123.0,0.0802001]
[1730476298196,0.014,69124.0,69123.0,0.0802001]
[1730476298441,0.014,69124.0,69123.0,0.0904557]
[1730476299057,0.014,69124.0,69123.0,0.2351247]
[1730476299283,0.21579163,69132.0,69123.0,0.0904557]
[1730476299443,0.50505763,69141.0,69123.0,0.0904557]
[1730476299444,0.21579163,69131.0,69123.0,0.0904557]
[1730476299655,0.21579163,69131.0,69125.0,0.144665]
[1730476299851,0.21579163,69131.0,69123.0,0.0954557]
[1730476299852,0.001,69132.0,69123.0,0.0954557]
[1730476300082,0.144661,69127.0,69126.0,0.010175]
[1730476300312,0.18844604,69127.0,69123.0,0.0852001]
[1730476300517,0.18844604,69127.0,69123.0,1e-07]
[1730476300518,0.46045863,69124.0,69123.0,1e-07]
[1730476300740,0.244667,69124.0,69123.0,1e-07]
[1730476300919,0.244667,69124.0,69123.0,0.0050001]
[1730476300920,0.28660774,69124.0,69123.0,0.0050001]
[1730476301180,0.001,69131.0,69123.0,0.0050001]
[1730476301417,0.001,69131.0,69124.0,0.1954]
[1730476301418,0.144655,69130.0,69124.0,0.1954]
[1730476301619,0.001,69131.0,69124.0,0.1954]
[1730476301830,0.001,69131.0,69125.0,0.01018658]
[1730476301831,0.144663,69126.0,69125.0,0.01018658]
[1730476302039,0.28311825,69126.0,69125.0,0.01018658]
[1730476302476,0.144667,69124.0,69123.0,1e-07]
[1730476302727,0.21579163,69141.0,69123.0,1e-07]
[1730476302972,0.21579163,69141.0,69123.0,0.1446691]
[1730476302973,0.008,69124.0,69123.0,0.1446691]
[1730476303211,0.1,69140.0,69123.0,0.1446691]
[1730476303212,0.21579163,69145.0,69123.0,0.41055535]
[1730476303449,0.21579163,69128.0,69127.0,0.144661]
[1730476303670,0.144667,69124.0,69123.0,0.28230982]
[1730476303876,0.144667,69124.0,69123.0,0.2721001]
[1730476304527,0.60017718,69124.0,69123.0,0.0050001]
[1730476304764,0.38438555,69124.0,69123.0,0.0050001]
[1730476304986,0.48438555,69124.0,69123.0,0.0050001]
[1730476305207,0.28312225,69124.0,69123.0,0.0050001]
[1730476305407,0.51148566,69124.0,69123.0,0.0050001]
[1730476305637,0.29569403,69124.0,69123.0,0.0050001]
[1730476305863,0.39569403,69124.0,69123.0,0.0050001]
[1730476306108,0.55428111,69124.0,69123.0,1e-07]
[1730476306327,0.55428111,69124.0,69098.0,0.00219207]
[1730476306328,0.1,69121.0,69098.0,0.00219207]
[1730476306546,0.1,69121.0,69065.0,0.08049995]
[1730476306547,0.144789,69066.0,69065.0,0.04258135]
[1730476306774,0.38094922,69098.0,69065.0,0.04258135]
[1730476306979,0.21579163,69089.0,69065.0,0.04258135]
[1730476307182,0.13845525,69088.0,69066.0,0.05547683]
[1730476307407,0.144789,69066.0,69065.0,0.03758135]
[1730476308047,0.289545,69074.0,69065.0,0.03758135]
[1730476308255,0.21579163,69070.0,69065.0,0.03758135]
[1730476308472,0.289559,69071.0,69065.0,0.03758135]
[1730476308473,0.38094922,69125.0,69066.0,0.13845525]
[1730476308692,0.21579163,69076.0,69075.0,0.14477]
[1730476308958,0.21579163,69090.0,69082.0,0.289508]
[1730476309166,0.21579163,69090.0,69075.0,0.1938]
[1730476309167,0.21579163,69083.0,69075.0,0.1938]
[1730476309379,0.289481,69089.0,69075.0,0.1938]
[1730476309548,0.144768,69076.0,69075.0,0.1938]
[1730476309966,0.28322325,69076.0,69075.0,0.1938]
[1730476310195,0.29584398,69076.0,69075.0,0.1938]
[1730476310389,0.01262073,69076.0,69075.0,0.1938]
[1730476310644,0.144763,69078.0,69075.0,0.21318]
[1730476310849,0.144789,69066.0,69065.0,0.03758135]
[1730476311035,0.13845525,69077.0,69065.0,0.03758135]
[1730476311238,0.22843156,69076.0,69065.0,0.03758135]
[1730476311528,0.22843156,69076.0,69066.0,0.21579163]
[1730476311529,0.01263993,69076.0,69066.0,0.21579163]
[1730476311667,0.0202239,69081.0,69066.0,0.21579163]
[1730476311668,0.0202239,69081.0,69080.0,0.144759]
[1730476311945,0.02024872,69096.0,69089.0,0.14474]
[1730476312164,0.02106656,69116.0,69096.0,0.167726]
[1730476312374,0.02106656,69116.0,69109.0,0.144698]
[1730476312586,0.21579163,69124.0,69109.0,0.144698]
[1730476312587,0.23685819,69117.0,69116.0,0.144684]
[1730476312787,0.23685819,69117.0,69116.0,0.30613925]
[1730476312987,0.21579163,69117.0,69116.0,0.30613925]
[1730476313104,0.00164,69160.0,69118.0,0.023]
[1730476313331,0.21579163,69138.0,69137.0,0.14464]
[1730476313779,0.21579163,69138.0,69127.0,0.65364922]
[1730476313780,0.00164,69160.0,69144.0,0.144625]
[1730476314027,0.00164,69160.0,69159.0,0.144594]
[1730476314481,0.289096,69182.0,69159.0,0.144594]
[1730476314482,0.21579163,69178.0,69163.0,0.167585]
[1730476314731,0.19213043,69178.0,69177.0,0.144556]
[1730476314957,0.21579163,69190.0,69179.0,0.289105]
[1730476315180,0.21579163,69190.0,69165.0,0.144581]
[1730476315430,0.21579163,69190.0,69166.0,0.023]
[1730476315658,0.21579163,69190.0,69165.0,0.38094922]
[1730476315888,0.21579163,69190.0,69189.0,0.144531]
[1730476316107,0.21579163,69199.0,69198.0,0.144512]
[1730476316328,0.21579163,69213.0,69212.0,0.144483]
[1730476316567,0.21579163,69213.0,69199.0,0.023]
[1730476316568,0.21579163,69220.0,69199.0,0.023]
[1730476316807,0.03457022,69239.0,69199.0,0.023]
[1730476316808,0.21579163,69219.0,69213.0,0.288963]
[1730476317016,0.21579163,69219.0,69191.0,0.0817]
[1730476317231,0.21579163,69218.0,69194.0,0.21579163]
[1730476317448,0.38094922,69212.0,69201.0,0.21579163]
[1730476317663,0.144519,69195.0,69194.0,0.21579163]
[1730476317886,0.21579163,69226.0,69194.0,0.21579163]
[1730476318155,0.21579163,69207.0,69195.0,0.24554079]
[1730476318374,0.144488,69210.0,69202.0,0.21579163]
[1730476318592,0.21579163,69212.0,69209.0,0.144488]
[1730476318806,0.42742625,69211.0,69187.0,0.21579163]
[1730476319027,0.13845525,69211.0,69194.0,0.21579163]
[1730476319250,0.288975,69210.0,69194.0,0.21579163]
[1730476319471,0.144516,69197.0,69194.0,0.21579163]
[1730476319679,0.13845525,69209.0,69191.0,0.0817]
[1730476319680,0.289038,69195.0,69191.0,0.0817]
[1730476319888,0.21579163,69208.0,69182.0,0.289089]
[1730476319889,0.144523,69193.0,69190.0,0.21579163]
[1730476320093,0.144513,69198.0,69192.0,0.144523]
[1730476320316,0.144513,69198.0,69178.0,0.144553]
[1730476320317,0.144538,69186.0,69178.0,0.144553]
[1730476320539,0.144538,69186.0,69172.0,0.476031]
[1730476320540,0.144548,69181.0,69180.0,0.21579163]
[1730476320756,0.144548,69181.0,69173.0,0.21579163]
[1730476320757,0.144558,69176.0,69175.0,0.21579163]
[1730476320976,0.38094922,69211.0,69175.0,0.23737079]
[1730476321212,0.21579163,69220.0,69189.0,0.289063]
[1730476321213,0.21579163,69196.0,69189.0,0.289063]
[1730476321435,0.21579163,69203.0,69186.0,0.38094922]
[1730476321436,0.21579163,69203.0,69202.0,0.144504]
[1730476321653,0.21579163,69203.0,69202.0,0.1878557]
[1730476321900,0.21579163,69220.0,69210.0,0.144486]
[1730476322129,0.21579163,69211.0,69210.0,0.144487]
[1730476322349,0.21579163,69220.0,69194.0,0.66998922]
[1730476322572,0.144449,69229.0,69205.0,0.167498]
[1730476322800,0.50630763,69234.0,69226.0,0.144454]
[1730476322801,0.21742963,69234.0,69226.0,0.144454]
[1730476323030,0.21742963,69234.0,69229.0,0.144448]
[1730476323248,0.21742963,69234.0,69233.0,0.144439]
[1730476323249,0.001638,69234.0,69233.0,0.144439]
[1730476323477,0.21579163,69248.0,69239.0,0.144427]
[1730476323478,0.21579163,69240.0,69239.0,0.144427]
[1730476323697,0.21579163,69248.0,69239.0,0.13845525]
[1730476323925,0.21579163,69248.0,69236.0,0.38094922]
[1730476323926,0.21579163,69255.0,69254.0,0.144395]
[1730476324177,0.001644,69263.0,69262.0,0.144379]
[1730476324402,0.21579163,69272.0,69271.0,0.14436]
[1730476324628,0.21579163,69279.0,69269.0,0.288726]
[1730476324848,0.21579163,69286.0,69262.0,0.0814]
[1730476324849,0.21579163,69286.0,69265.0,0.38094922]
[1730476325079,0.21579163,69293.0,69276.0,0.1824]
[1730476325299,0.23082114,69321.0,69273.0,0.38094922]
[1730476325300,0.21579163,69292.0,69289.0,0.144323]
[1730476325523,0.21579163,69291.0,69289.0,0.144323]
[1730476325800,0.21579163,69300.0,69289.0,0.28277825]
[1730476326011,0.36006263,69314.0,69289.0,0.28277825]
[1730476326012,0.21579163,69299.0,69289.0,0.36878678]
[1730476326223,0.21579163,69314.0,69289.0,0.36878678]
[1730476326433,0.21579163,69314.0,69289.0,0.628413]
[1730476326649,0.21579163,69314.0,69300.0,0.1443]
[1730476326862,0.21579163,69306.0,69300.0,0.1443]
[1730476327107,0.21579163,69313.0,69300.0,0.28275525]
[1730476327319,0.21579163,69321.0,69300.0,0.30575525]
[1730476327535,0.288418,69344.0,69318.0,0.144262]
[1730476327536,0.21579163,69328.0,69318.0,0.144262]
[1730476327749,0.001634,69347.0,69318.0,0.51940447]
[1730476327959,9e-05,69341.0,69332.0,0.144233]
[1730476328171,9e-05,69341.0,69332.0,0.245833]
[1730476328384,9e-05,69341.0,69340.0,0.144216]
[1730476328603,9e-05,69341.0,69340.0,0.28267125]
[1730476329032,9e-05,69341.0,69340.0,0.30567125]
[1730476329266,9e-05,69341.0,69332.0,0.51218445]
[1730476329267,0.001,69333.0,69332.0,0.0846]
[1730476329477,0.001,69333.0,69332.0,0.37574825]
[1730476330088,9e-05,69341.0,69332.0,0.37574825]
[1730476330089,9e-05,69341.0,69340.0,0.144216]
[1730476330303,0.001634,69347.0,69346.0,0.144204]
[1730476330529,0.21743363,69356.0,69347.0,0.0528]
[1730476330746,0.35997663,69355.0,69347.0,0.15985525]
[1730476330945,0.001642,69356.0,69340.0,0.006]
[1730476331158,0.144214,69341.0,69340.0,0.006]
[1730476331389,0.144241,69328.0,69327.0,0.21579163]
[1730476331824,0.144243,69327.0,69306.0,0.0805]
[1730476332033,0.144256,69321.0,69320.0,0.21579163]
[1730476332244,0.288492,69326.0,69320.0,0.01027306]
[1730476332462,0.144269,69315.0,69306.0,0.0805]
[1730476332673,0.288432,69341.0,69320.0,0.144256]
[1730476332893,0.21579163,69337.0,69315.0,0.288537]
[1730476333112,0.35424688,69336.0,69314.0,0.01034212]
[1730476333408,0.13845525,69336.0,69323.0,0.21579163]
[1730476333626,0.288417,69344.0,69330.0,0.21579163]
[1730476333842,0.50415063,69358.0,69331.0,0.01012327]
[1730476334060,0.144188,69354.0,69346.0,0.144204]
[1730476334280,0.21579163,69364.0,69348.0,0.2884]
[1730476334490,0.145816,69360.0,69350.0,0.144195]
[1730476334704,0.145815,69360.0,69350.0,0.288392]
[1730476334915,0.00164,69360.0,69355.0,0.144185]
[1730476335147,0.00164,69360.0,69355.0,0.28264025]
[1730476335358,0.00164,69360.0,69355.0,0.67343672]
[1730476335568,0.00164,69360.0,69355.0,0.79845699]
[1730476336214,0.001634,69366.0,69365.0,0.144164]
[1730476336432,0.001634,69366.0,69365.0,0.29235154]
[1730476337301,0.001634,69366.0,69365.0,0.00973229]
[1730476337534,0.144153,69371.0,69365.0,0.50973229]
[1730476337755,0.0103991,69372.0,69365.0,0.69899255]
[1730476337963,0.0103991,69372.0,69366.0,0.0097208]
[1730476338203,0.0103991,69372.0,69366.0,0.22551243]
[1730476338434,0.14416,69367.0,69366.0,0.0097208]
[1730476338649,0.66356447,69367.0,69366.0,0.0097208]
[1730476339529,0.28261525,69367.0,69366.0,0.0097208]
[1730476339790,0.0103991,69372.0,69366.0,0.22551243]
[1730476340009,0.0103991,69372.0,69366.0,0.0097208]
[1730476340463,0.0103991,69372.0,69366.0,0.0147208]
[1730476340464,0.144152,69371.0,69366.0,0.0147208]
[1730476340665,0.0103991,69372.0,69366.0,0.23051243]
[1730476340897,0.0103991,69372.0,69366.0,0.0097208]
[1730476341182,0.0103991,69372.0,69371.0,0.144152]
[1730476341429,0.0103991,69372.0,69371.0,0.00966333]
[1730476341673,0.0103991,69372.0,69366.0,0.005]
[1730476341674,0.14416,69367.0,69366.0,0.005]
[1730476341883,0.14416,69367.0,69355.0,0.21579163]
[1730476341884,0.144183,69356.0,69355.0,0.21579163]
[1730476342091,0.144172,69362.0,69355.0,0.21579163]
[1730476342317,0.0103991,69372.0,69355.0,0.22563888]
[1730476342531,0.0103991,69372.0,69357.0,0.288363]
[1730476342740,0.35424688,69371.0,69355.0,0.00984725]
[1730476342974,0.35424688,69371.0,69358.0,0.00981276]
[1730476342975,0.13845525,69371.0,69358.0,0.00981276]
[1730476343183,0.0103991,69372.0,69366.0,0.005]
[1730476343402,0.0103991,69372.0,69371.0,0.144152]
[1730476343629,0.0103991,69372.0,69371.0,0.00966333]
[1730476343850,0.0103991,69372.0,69371.0,0.28260725]
[1730476344077,0.0103991,69372.0,69371.0,0.2922618]
[1730476344297,0.0103991,69372.0,69371.0,0.37189884]
[1730476344756,0.0103991,69372.0,69371.0,0.00965455]
[1730476345221,0.0103991,69372.0,69371.0,0.15380655]
[1730476345437,0.0103991,69372.0,69371.0,0.00965455]
[1730476345660,0.0103991,69372.0,69355.0,0.21579163]
[1730476345661,0.0103991,69372.0,69367.0,0.50410963]
[1730476345887,0.0103991,69372.0,69371.0,0.144152]
[1730476346160,0.0103991,69372.0,69371.0,0.28260725]
[1730476346339,0.1545491,69372.0,69371.0,0.00965455]
[1730476346566,0.0103991,69372.0,69371.0,0.00965455]
[1730476346785,0.0103991,69372.0,69362.0,0.21579163]
[1730476347016,0.0103991,69372.0,69362.0,0.13845525]
[1730476347228,0.0103991,69372.0,69355.0,0.21579163]
[1730476347229,0.0103991,69372.0,69371.0,0.144152]
[1730476347447,0.0103991,69372.0,69371.0,0.2922618]
[1730476347664,0.0103991,69372.0,69371.0,0.2972618]
[1730476348109,0.0103991,69372.0,69371.0,0.3152618]
[1730476348381,0.21579163,69388.0,69386.0,0.144119]
[1730476348598,0.21579163,69388.0,69383.0,0.288253]
[1730476348839,0.001634,69389.0,69388.0,0.144117]
[1730476349051,0.001634,69389.0,69388.0,0.00945924]
[1730476349278,0.001634,69389.0,69386.0,0.144119]
[1730476349504,0.001634,69389.0,69387.0,0.00947072]
[1730476349712,0.001634,69389.0,69388.0,0.144117]
[1730476349950,0.001634,69389.0,69387.0,0.144117]
[1730476350169,0.001634,69389.0,69388.0,0.00945924]
[1730476350170,0.145749,69389.0,69388.0,0.00945924]
[1730476350402,0.52669822,69389.0,69388.0,0.50945924]
[1730476350608,0.52669822,69389.0,69388.0,0.5]
[1730476350811,0.38258322,69389.0,69388.0,0.50945924]
[1730476351034,0.52669822,69389.0,69388.0,0.51445924]
[1730476351252,0.001634,69389.0,69388.0,0.51445924]
[1730476351487,0.52669822,69389.0,69388.0,0.50945924]
[1730476352127,0.38258322,69389.0,69388.0,0.504]
[1730476352342,0.001634,69389.0,69388.0,0.504]
[1730476352606,0.52669822,69389.0,69388.0,0.50945924]
[1730476352839,0.52669822,69389.0,69317.0,0.38094922]
[1730476352840,0.60253009,69389.0,69358.0,0.0805]
[1730476353055,0.38094922,69370.0,69369.0,0.21579163]
[1730476353280,0.001634,69389.0,69369.0,0.21579163]
[1730476353281,0.38094922,69386.0,69369.0,0.21579163]
[1730476353487,0.001634,69389.0,69369.0,0.144156]
[1730476353488,0.38094922,69370.0,69369.0,0.144156]
[1730476353940,0.288246,69385.0,69366.0,0.57665]
[1730476353941,0.38094922,69379.0,69366.0,0.57665]
[1730476354150,0.38094922,69379.0,69375.0,0.288285]
[1730476354371,0.38094922,69379.0,69367.0,0.13845525]